{"text_format":"1","workbook":"xlsx","n_sheets":1,"sheets":["CALCUL 108H & HSE"],"not_rendered":{"charts":0,"images":1,"macros":1,"external_links":0,"defined_names":0,"comments":0,"pivot_tables":0},"unopened":[],"bounds":{"document_bytes":16777216,"sheet_cells":100000,"rows_first":2000,"rows_last":500,"rows_between":2000,"halvings":0,"cell_chars":16384,"cell_head_chars":4096},"cells_cut":0,"cells_raw":0,"read":"whole","date_system":"1900"}

{"sheet":"CALCUL 108H & HSE","index":0,"n_rows":49,"n_cols":80,"rows_kept":49,"cut":false,"hidden":false,"merged":[[9,49,9,55],[11,18,11,23],[10,54,10,60],[10,62,10,64],[9,58,9,61],[45,74,45,76],[46,38,46,40],[46,41,46,43],[46,45,46,47],[46,48,46,50],[46,52,46,54],[46,55,46,57],[46,59,46,61],[46,62,46,64],[46,66,46,68],[46,69,46,71],[46,73,46,75],[46,76,46,78],[45,60,45,62],[45,67,45,69],[46,34,46,36],[45,10,45,12],[46,12,46,14],[46,9,46,11],[46,2,46,3],[45,3,45,5],[46,4,46,6],[46,16,46,18],[46,19,46,21],[46,23,46,25],[46,26,46,28],[46,31,46,33],[45,16,45,52],[13,72,13,78],[42,37,44,43],[5,49,5,55],[3,26,3,78],[8,71,11,77],[13,44,13,50],[13,51,13,57],[8,29,8,42],[9,29,9,42],[5,63,5,64],[5,57,5,61],[7,49,7,55],[7,57,7,61],[7,63,7,64],[9,63,9,64],[9,47,9,48],[13,1,13,7],[13,58,13,64],[13,65,13,71],[13,8,13,14],[13,15,13,21],[13,22,13,28],[13,30,13,36],[13,37,13,43],[8,1,8,14],[9,1,9,14],[4,15,4,19],[4,20,4,23],[5,15,5,19],[6,15,6,19],[7,15,7,19],[8,15,8,19],[9,15,9,19],[5,20,5,23],[6,20,6,23],[7,20,7,23],[8,20,8,23],[9,20,9,23],[3,1,3,23],[4,1,4,14],[5,29,5,42],[6,29,6,42],[7,29,7,42],[5,1,5,14],[6,1,6,14],[7,1,7,14]]}
[]
[]
[]
[null,"REPARTITION ETCALCUL DES 108 H",null,null,null,null,null,null,null,null,null,null,null,null,null,null,null,null,null,null,null,null,null,null,null,null,"COPIEZ -> COLLEZ (ctrl+c -> t=ctrl+ v) LES CASES EN COULEUR POUR CALCULER VOS HEURES / VOTRE REMUNERATION"]
[null,null,null,null,null,null,null,null,null,null,null,null,null,null,null,"REPARTITION",null,null,null,null,"CALCUL"]
[null,"Concertation ",null,null,null,null,null,null,null,null,null,null,null,null,null,24,null,null,null,null,{"$f":"NbColorSameAs(B15:CA45,AB6)","v":0},null,null,null,null,null,null,null,null,"Concertation ",null,null,null,null,null,null,null,null,null,null,null,null,null,null,null,null,null,null,null,"HSE Devoirs Faits",null,null,null,null,null,null,null,"TOTAL HSE :",null,null,null,null,null,{"$f":"NbColorSameAs(B14:CA45,AV6)","v":0}]
[null,"Conseil d'école ",null,null,null,null,null,null,null,null,null,null,null,null,null,6,null,null,null,null,{"$f":"NbColorSameAs(B15:CA45,AB7)","v":0},null,null,null,null,null,null,null,null,"Conseil d'école "]
[null,"Animation & Formation ",null,null,null,null,null,null,null,null,null,null,null,null,null,18,null,null,null,null,{"$f":"NbColorSameAs(B15:CA45,AB8)","v":0},null,null,null,null,null,null,null,null,"Animation & Formation ",null,null,null,null,null,null,null,null,null,null,null,null,null,null,null,null,null,null,null,"HSE Accomp Educ",null,null,null,null,null,null,null,"TOTAL HSE :",null,null,null,null,null,{"$f":"NbColorSameAs(B16:CA47,AV8)","v":0}]
[null,"APC ",null,null,null,null,null,null,null,null,null,null,null,null,null,36,null,null,null,null,{"$f":"NbColorSameAs(B15:CA45,AB9)","v":0},null,null,null,null,null,null,null,null,"APC ",null,null,null,null,null,null,null,null,null,null,null,null,null,null,null,null,null,null,null,null,null,null,null,null,null,null,null,null,null,null,null,null,null,null,null,null,null,null,null,null,null,"CPC NE BUNEL Sébastien"]
[null,"Organisation",null,null,null,null,null,null,null,null,null,null,null,null,null,24,null,null,null,null,{"$f":"NbColorSameAs(B15:CA45,AB10)","v":0},null,null,null,null,null,null,null,null,"Organisation",null,null,null,null,null,null,null,null,null,null,null,null,null,null,null,null,null,24,null,"euros de l'heure",null,null,null,null,null,null,null,null,"Total HSE",null,null,null,null,{"$f":"SUM(BL6,BL8)","v":0}]
[null,null,null,null,null,null,null,null,null,null,null,null,null,null,null,null,null,null,null,null,null,null,null,null,null,null,null,null,null,null,null,null,null,null,null,null,null,null,null,null,null,null,null,null,null,null,null,null,null,null,null,null,null,null,"REMUNERATION :",null,null,null,null,null,null,null,{"$f":"BL10*AV10","v":0}]
[null,null,null,null,null,null,null,null,null,null,null,null,null,null,null,null,null,null,"VACANCES SCOLAIRES"]
[]
[null,"SEPTEMBRE",null,null,null,null,null,null,"OCTOBRE",null,null,null,null,null,null,"NOVEMBRE",null,null,null,null,null,null,"DECEMBRE",null,null,null,null,null,null,null,"JANVIER",null,null,null,null,null,null,"FEVRIER",null,null,null,null,null,null,"MARS",null,null,null,null,null,null,"AVRIL",null,null,null,null,null,null,"MAI",null,null,null,null,null,null,"JUIN",null,null,null,null,null,null,"JUILLET"]
[null,"Mer.",1,null,null,null,null,null,"Ven.",1,null,null,null,null,null,"Lun.",1,null,null,null,null,null,"Mer.",1,null,null,null,null,null,null,"Sam.",1,null,null,null,null,null,"Mar.",1,null,null,null,null,null,"Mar.",1,null,null,null,null,null,"Ven.",1,null,null,null,null,null,"Dim.",1,null,null,null,null,null,"Mer.",1,null,null,null,null,null,"Ven.",1]
[null,"Jeu.",2,null,null,null,null,null,"Sam.",2,null,null,null,null,null,"Mar.",2,null,null,null,null,null,"Jeu.",2,null,null,null,null,null,null,"Dim.",2,null,null,null,null,null,"Mer.",2,null,null,null,null,null,"Mer.",2,null,null,null,null,null,"Sam.",2,null,null,null,null,null,"Lun.",2,null,null,null,null,null,"Jeu.",2,null,null,null,null,null,"Sam.",2]
[null,"Ven.",3,null,null,null,null,null,"Dim.",3,null,null,null,null,null,"Mer.",3,null,null,null,null,null,"Ven.",3,null,null,null,null,null,null,"Lun.",3,null,null,null,null,null,"Jeu.",3,null,null,null,null,null,"Jeu.",3,null,null,null,null,null,"Dim.",3,null,null,null,null,null,"Mar.",3,null,null,null,null,null,"Ven.",3,null,null,null,null,null,"Dim.",3]
[null,"Sam.",4,null,null,null,null,null,"Lun.",4,null,null,null,null,null,"Jeu.",4,null,null,null,null,null,"Sam.",4,null,null,null,null,null,null,"Mar.",4,null,null,null,null,null,"Ven.",4,null,null,null,null,null,"Ven.",4,null,null,null,null,null,"Lun.",4,null,null,null,null,null,"Mer.",4,null,null,null,null,null,"Sam.",4,null,null,null,null,null,"Lun.",4]
[null,"Dim.",5,null,null,null,null,null,"Mar.",5,null,null,null,null,null,"Ven.",5,null,null,null,null,null,"Dim.",5,null,null,null,null,null,null,"Mer.",5,null,null,null,null,null,"Sam.",5,null,null,null,null,null,"Sam.",5,null,null,null,null,null,"Mar.",5,null,null,null,null,null,"Jeu.",5,null,null,null,null,null,"Dim.",5,null,null,null,null,null,"Mar.",5]
[null,"Lun.",6,null,null,null,null,null,"Mer.",6,null,null,null,null,null,"Sam.",6,null,null,null,null,null,"Lun.",6,null,null,null,null,null,null,"Jeu.",6,null,null,null,null,null,"Dim.",6,null,null,null,null,null,"Dim.",6,null,null,null,null,null,"Mer.",6,null,null,null,null,null,"Ven.",6,null,null,null,null,null,"Lun.",6,null,null,null,null,null,"Mer.",6]
[null,"Mar.",7,null,null,null,null,null,"Jeu.",7,null,null,null,null,null,"Dim.",7,null,null,null,null,null,"Mar.",7,null,null,null,null,null,null,"Ven.",7,null,null,null,null,null,"Lun.",7,null,null,null,null,null,"Lun.",7,null,null,null,null,null,"Jeu.",7,null,null,null,null,null,"Sam.",7,null,null,null,null,null,"Mar.",7,null,null,null,null,null,"Jeu.",7]
[null,"Mer.",8,null,null,null,null,null,"Ven.",8,null,null,null,null,null,"Lun.",8,null,null,null,null,null,"Mer.",8,null,null,null,null,null,null,"Sam.",8,null,null,null,null,null,"Mar.",8,null,null,null,null,null,"Mar.",8,null,null,null,null,null,"Ven.",8,null,null,null,null,null,"Dim.",8,null,null,null,null,null,"Mer.",8,null,null,null,null,null,"Ven.",8]
[null,"Jeu.",9,null,null,null,null,null,"Sam.",9,null,null,null,null,null,"Mar.",9,null,null,null,null,null,"Jeu.",9,null,null,null,null,null,null,"Dim.",9,null,null,null,null,null,"Mer.",9,null,null,null,null,null,"Mer.",9,null,null,null,null,null,"Sam.",9,null,null,null,null,null,"Lun.",9,null,null,null,null,null,"Jeu.",9,null,null,null,null,null,"Sam.",9]
[null,"Ven.",10,null,null,null,null,null,"Dim.",10,null,null,null,null,null,"Mer.",10,null,null,null,null,null,"Ven.",10,null,null,null,null,null,null,"Lun.",10,null,null,null,null,null,"Jeu.",10,null,null,null,null,null,"Jeu.",10,null,null,null,null,null,"Dim.",10,null,null,null,null,null,"Mar.",10,null,null,null,null,null,"Ven.",10,null,null,null,null,null,"Dim.",10]
[null,"Sam.",11,null,null,null,null,null,"Lun.",11,null,null,null,null,null,"Jeu.",11,null,null,null,null,null,"Sam.",11,null,null,null,null,null,null,"Mar.",11,null,null,null,null,null,"Ven.",11,null,null,null,null,null,"Ven.",11,null,null,null,null,null,"Lun.",11,null,null,null,null,null,"Mer.",11,null,null,null,null,null,"Sam.",11,null,null,null,null,null,"Lun.",11]
[null,"Dim.",12,null,null,null,null,null,"Mar.",12,null,null,null,null,null,"Ven.",12,null,null,null,null,null,"Dim.",12,null,null,null,null,null,null,"Mer.",12,null,null,null,null,null,"Sam.",12,null,null,null,null,null,"Sam.",12,null,null,null,null,null,"Mar.",12,null,null,null,null,null,"Jeu.",12,null,null,null,null,null,"Dim.",12,null,null,null,null,null,"Mar.",12]
[null,"Lun.",13,null,null,null,null,null,"Mer.",13,null,null,null,null,null,"Sam.",13,null,null,null,null,null,"Lun.",13,null,null,null,null,null,null,"Jeu.",13,null,null,null,null,null,"Dim.",13,null,null,null,null,null,"Dim.",13,null,null,null,null,null,"Mer.",13,null,null,null,null,null,"Ven.",13,null,null,null,null,null,"Lun.",13,null,null,null,null,null,"Mer.",13]
[null,"Mar.",14,null,null,null,null,null,"Jeu.",14,null,null,null,null,null,"Dim.",14,null,null,null,null,null,"Mar.",14,null,null,null,null,null,null,"Ven.",14,null,null,null,null,null,"Lun.",14,null,null,null,null,null,"Lun.",14,null,null,null,null,null,"Jeu.",14,null,null,null,null,null,"Sam.",14,null,null,null,null,null,"Mar.",14,null,null,null,null,null,"Jeu.",14]
[null,"Mer.",15,null,null,null,null,null,"Ven.",15,null,null,null,null,null,"Lun.",15,null,null,null,null,null,"Mer.",15,null,null,null,null,null,null,"Sam.",15,null,null,null,null,null,"Mar.",15,null,null,null,null,null,"Mar.",15,null,null,null,null,null,"Ven.",15,null,null,null,null,null,"Dim.",15,null,null,null,null,null,"Mer.",15,null,null,null,null,null,"Ven.",15]
[null,"Jeu.",16,null,null,null,null,null,"Sam.",16,null,null,null,null,null,"Mar.",16,null,null,null,null,null,"Jeu.",16,null,null,null,null,null,null,"Dim.",16,null,null,null,null,null,"Mer.",16,null,null,null,null,null,"Mer.",16,null,null,null,null,null,"Sam.",16,null,null,null,null,null,"Lun.",16,null,null,null,null,null,"Jeu.",16,null,null,null,null,null,"Sam.",16]
[null,"Ven.",17,null,null,null,null,null,"Dim.",17,null,null,null,null,null,"Mer.",17,null,null,null,null,null,"Ven.",17,null,null,null,null,null,null,"Lun.",17,null,null,null,null,null,"Jeu.",17,null,null,null,null,null,"Jeu.",17,null,null,null,null,null,"Dim.",17,null,null,null,null,null,"Mar.",17,null,null,null,null,null,"Ven.",17,null,null,null,null,null,"Dim.",17]
[null,"Sam.",18,null,null,null,null,null,"Lun.",18,null,null,null,null,null,"Jeu.",18,null,null,null,null,null,"Sam.",18,null,null,null,null,null,null,"Mar.",18,null,null,null,null,null,"Ven.",18,null,null,null,null,null,"Ven.",18,null,null,null,null,null,"Lun.",18,null,null,null,null,null,"Mer.",18,null,null,null,null,null,"Sam.",18,null,null,null,null,null,"Lun.",18]
[null,"Dim.",19,null,null,null,null,null,"Mar.",19,null,null,null,null,null,"Ven.",19,null,null,null,null,null,"Dim.",19,null,null,null,null,null,null,"Mer.",19,null,null,null,null,null,"Sam.",19,null,null,null,null,null,"Sam.",19,null,null,null,null,null,"Mar.",19,null,null,null,null,null,"Jeu.",19,null,null,null,null,null,"Dim.",19,null,null,null,null,null,"Mar.",19]
[null,"Lun.",20,null,null,null,null,null,"Mer.",20,null,null,null,null,null,"Sam.",20,null,null,null,null,null,"Lun.",20,null,null,null,null,null,null,"Jeu.",20,null,null,null,null,null,"Dim.",20,null,null,null,null,null,"Dim.",20,null,null,null,null,null,"Mer.",20,null,null,null,null,null,"Ven.",20,null,null,null,null,null,"Lun.",20,null,null,null,null,null,"Mer.",20]
[null,"Mar.",21,null,null,null,null,null,"Jeu.",21,null,null,null,null,null,"Dim.",21,null,null,null,null,null,"Mar.",21,null,null,null,null,null,null,"Ven.",21,null,null,null,null,null,"Lun.",21,null,null,null,null,null,"Lun.",21,null,null,null,null,null,"Jeu.",21,null,null,null,null,null,"Sam.",21,null,null,null,null,null,"Mar.",21,null,null,null,null,null,"Jeu.",21]
[null,"Mer.",22,null,null,null,null,null,"Ven.",22,null,null,null,null,null,"Lun.",22,null,null,null,null,null,"Mer.",22,null,null,null,null,null,null,"Sam.",22,null,null,null,null,null,"Mar.",22,null,null,null,null,null,"Mar.",22,null,null,null,null,null,"Ven.",22,null,null,null,null,null,"Dim.",22,null,null,null,null,null,"Mer.",22,null,null,null,null,null,"Ven.",22]
[null,"Jeu.",23,null,null,null,null,null,"Sam.",23,null,null,null,null,null,"Mar.",23,null,null,null,null,null,"Jeu.",23,null,null,null,null,null,null,"Dim.",23,null,null,null,null,null,"Mer.",23,null,null,null,null,null,"Mer.",23,null,null,null,null,null,"Sam.",23,null,null,null,null,null,"Lun.",23,null,null,null,null,null,"Jeu.",23,null,null,null,null,null,"Sam.",23]
[null,"Ven.",24,null,null,null,null,null,"Dim.",24,null,null,null,null,null,"Mer.",24,null,null,null,null,null,"Ven.",24,null,null,null,null,null,null,"Lun.",24,null,null,null,null,null,"Jeu.",24,null,null,null,null,null,"Jeu.",24,null,null,null,null,null,"Dim.",24,null,null,null,null,null,"Mar.",24,null,null,null,null,null,"Ven.",24,null,null,null,null,null,"Dim.",24]
[null,"Sam.",25,null,null,null,null,null,"Lun.",25,null,null,null,null,null,"Jeu.",25,null,null,null,null,null,"Sam.",25,null,null,null,null,null,null,"Mar.",25,null,null,null,null,null,"Ven.",25,null,null,null,null,null,"Ven.",25,null,null,null,null,null,"Lun.",25,null,null,null,null,null,"Mer.",25,null,null,null,null,null,"Sam.",25,null,null,null,null,null,"Lun.",25]
[null,"Dim.",26,null,null,null,null,null,"Mar.",26,null,null,null,null,null,"Ven.",26,null,null,null,null,null,"Dim.",26,null,null,null,null,null,null,"Mer.",26,null,null,null,null,null,"Sam.",26,null,null,null,null,null,"Sam.",26,null,null,null,null,null,"Mar.",26,null,null,null,null,null,"Jeu.",26,null,null,null,null,null,"Dim.",26,null,null,null,null,null,"Mar.",26]
[null,"Lun.",27,null,null,null,null,null,"Mer.",27,null,null,null,null,null,"Sam.",27,null,null,null,null,null,"Lun.",27,null,null,null,null,null,null,"Jeu.",27,null,null,null,null,null,"Dim.",27,null,null,null,null,null,"Dim.",27,null,null,null,null,null,"Mer.",27,null,null,null,null,null,"Ven.",27,null,null,null,null,null,"Lun.",27,null,null,null,null,null,"Mer.",27]
[null,"Mar.",28,null,null,null,null,null,"Jeu.",28,null,null,null,null,null,"Dim.",28,null,null,null,null,null,"Mar.",28,null,null,null,null,null,null,"Ven.",28,null,null,null,null,null,"Lun.",28,null,null,null,null,null,"Lun.",28,null,null,null,null,null,"Jeu.",28,null,null,null,null,null,"Sam.",28,null,null,null,null,null,"Mar.",28,null,null,null,null,null,"Jeu.",28]
[null,"Mer.",29,null,null,null,null,null,"Ven.",29,null,null,null,null,null,"Lun.",29,null,null,null,null,null,"Mer.",29,null,null,null,null,null,null,"Sam.",29,null,null,null,null,null,null,null,null,null,null,null,null,"Mar.",29,null,null,null,null,null,"Ven.",29,null,null,null,null,null,"Dim.",29,null,null,null,null,null,"Mer.",29,null,null,null,null,null,"Ven.",29]
[null,"Jeu.",30,null,null,null,null,null,"Sam.",30,null,null,null,null,null,"Mar.",30,null,null,null,null,null,"Jeu.",30,null,null,null,null,null,null,"Dim.",30,null,null,null,null,null,null,null,null,null,null,null,null,"Mer.",30,null,null,null,null,null,"Sam.",30,null,null,null,null,null,"Lun.",30,null,null,null,null,null,"Jeu.",30,null,null,null,null,null,"Sam.",30]
[null,null,null,null,null,null,null,null,"Dim.",31,null,null,null,null,null,null,null,null,null,null,null,null,"Ven.",31,null,null,null,null,null,null,"Lun.",31,null,null,null,null,null,null,null,null,null,null,null,null,"Jeu.",31,null,null,null,null,null,null,null,null,null,null,null,null,"Mar.",31,null,null,null,null,null,null,null,null,null,null,null,null,"Dim.",31]
[null,"HSE",{"$f":"AV10","v":24},"euros",null,null,null,null,null,null,null,null,null,null,null,null,"GAINS TOTAL / MOIS",null,null,null,null,null,null,null,null,null,null,null,null,null,null,null,null,null,null,null,null,null,null,null,null,null,null,null,null,null,null,null,null,null,null,null,null,null,null,null,null,null,null,null,null,null,null,null,null,null,null,null,null,null,null,null,null,null,null,null,null,null,null,"TOTAL"]
[null,"Sept",{"$f":"E49*$C$46","v":0},null,"euros",null,null,null,"Oct",{"$f":"M49*$C$46","v":0},null,null,"euros",null,null,"Nov",{"$f":"T49*$C$46","v":0},null,null,"euros",null,null,"Déc",{"$f":"AA49*$C$46","v":0},null,null,"euros",null,null,null,"Janv",{"$f":"AI49*$C$46","v":0},null,null,"euros",null,null,"Févr",{"$f":"AP49*$C$46","v":0},null,null,"euros",null,null,"Mars",{"$f":"AW49*$C$46","v":0},null,null,"euros",null,null,"Avr",{"$f":"BD49*$C$46","v":0},null,null,"euros",null,null,"Mai",{"$f":"BK49*$C$46","v":0},null,null,"euros",null,null,"Juin",{"$f":"BR49*$C$46","v":0},null,null,"euros",null,null,"Juil",{"$f":"BY49*$C$46","v":0},null,null,"euros"]
[]
[null,null,{"$f":"NbColorSameAs(D15:H45,$AV$6)","v":0},{"$f":"NbColorSameAs(D15:H45,AV8)","v":0},{"$f":"SUM(C49,D49)","v":0},null,null,null,null,{"$f":"NbColorSameAs(L15:O45,$AV$6)","v":0},{"$f":"NbColorSameAs(K15:O45,BC6)","v":0},{"$f":"NbColorSameAs(L15:O45,$AV$8)","v":0},{"$f":"SUM(J49,L49)","v":0},null,null,null,{"$f":"NbColorSameAs(S15:V45,$AV$6)","v":0},{"$f":"NbColorSameAs(R15:V45,BJ6)","v":0},{"$f":"NbColorSameAs(S15:V45,$AV$8)","v":0},{"$f":"SUM(Q49,S49)","v":0},null,null,null,{"$f":"NbColorSameAs(Z15:AC45,$AV$6)","v":0},null,{"$f":"NbColorSameAs(Z15:AC45,$AV$8)","v":0},{"$f":"SUM(X49,Z49)","v":0},null,null,null,null,{"$f":"NbColorSameAs(AH15:AK45,$AV$6)","v":0},null,{"$f":"NbColorSameAs(AH15:AK45,$AV$8)","v":0},{"$f":"SUM(AF49,AH49)","v":0},null,null,null,{"$f":"NbColorSameAs(AO15:AR45,$AV$6)","v":0},null,{"$f":"NbColorSameAs(AO15:AR45,$AV$8)","v":0},{"$f":"SUM(AM49,AO49)","v":0},null,null,null,{"$f":"NbColorSameAs(AV15:AY45,$AV$6)","v":0},null,{"$f":"NbColorSameAs(AV15:AY45,$AV$8)","v":0},{"$f":"SUM(AT49,AV49)","v":0},null,null,null,{"$f":"NbColorSameAs(BC15:BF45,$AV$6)","v":0},null,{"$f":"NbColorSameAs(BC15:BF45,$AV$8)","v":0},{"$f":"SUM(BA49,BC49)","v":0},null,null,null,{"$f":"NbColorSameAs(BJ15:BM45,$AV$6)","v":0},null,{"$f":"NbColorSameAs(BJ15:BM45,$AV$8)","v":0},{"$f":"SUM(BH49,BJ49)","v":0},null,null,null,{"$f":"NbColorSameAs(BQ15:BT45,$AV$6)","v":0},null,{"$f":"NbColorSameAs(BQ15:BT45,$AV$8)","v":0},{"$f":"SUM(BO49,BQ49)","v":0},null,null,null,{"$f":"NbColorSameAs(BX15:CA45,$AV$6)","v":0},null,{"$f":"NbColorSameAs(BX15:CA45,$AV$8)","v":0},{"$f":"SUM(BV49,BX49)","v":0}]